Cogmind - Beta 15 @@@ ROGUE MODE // 2025.06.07 @ 01:36:01 Player: CheifClapdad Result: Self-destructed Performance ------------- Evolutions (1) 500 Regions Visited (2) 400 Robots Destroyed (28) 140 Value Destroyed (522) 522 Prototype IDs (0) 0 Alien Tech Used (0) 0 Bonus (0) 0 TOTAL SCORE: 1562 Bonus ------- None Cogmind --------- Core Integrity 350/400 Matter 289/300 Energy 265/265 System Corruption 0% Temperature Cool (0) Movement Treading (240) Ox1 Location -9/Materials Parts ------- > --- POWER (1) -------- Improved Ion Engine > --- PROPULSION (3) --- Light Treads Light Treads > --- UTILITY (3) ------ Improved Heat Sink High-capacity Storage Unit > --- WEAPON (2) ------- Small Laser > --- INVENTORY (20) --- Ion Engine Light Ion Engine Improved Ion Engine Light Nuclear Core Light Treads Aluminum Leg Compact Wheel Heat Sink Small Storage Unit Small Matter Pod (50) Weapon Shielding Small Laser Small Laser Particle Gun Assault Rifle Improved Light Cannon Improved Light Cannon Peak State ------------ > --- POWER ------------ Improved Ion Engine > --- PROPULSION ------- Light Treads Light Treads Light Treads > --- UTILITY ---------- Heat Sink Improved Heat Sink High-capacity Storage Unit > --- WEAPON ----------- Small Laser Assault Rifle > --- INVENTORY -------- Ion Engine Improved Ion Engine Light Nuclear Core Aluminum Leg Compact Wheel Heat Sink Small Storage Unit Small Matter Pod Weapon Shielding Small Laser Small Laser Particle Gun Assault Rifle Improved Light Cannon Improved Light Cannon [Rating: 14] Favorites ----------- Power Improved Ion Engine Engine Improved Ion Engine Propulsion Light Treads Treads Light Treads Wheel Wheel Utility High-capacity Storage Unit Device Improved Heat Sink Storage High-capacity Storage Unit Weapon Assault Rifle Energy Gun Small Laser Ballistic Gun Assault Rifle Build | -11 -10 -9 ------- Run | Yrd Mat Mat Slots Evolved 2 | . . 2 Power . | . . . Propulsion 1 | . . 1 Utility 1 | . . 1 Weapon . | . . . Parts Attached 22 | 7 12 3 Power 3 | 1 2 . Engine 3 | 1 2 . Core . | . . . Reactor . | . . . Propulsion 8 | 2 3 3 Treads 5 | 1 1 3 Leg . | . . . Wheel 3 | 1 2 . Hover . | . . . Flight . | . . . Utility 5 | 2 3 . Device 3 | 1 2 . Storage 2 | 1 1 . Processor . | . . . Hackware . | . . . Protection . | . . . Artifact . | . . . Weapon 6 | 2 4 . Energy Gun 4 | 1 3 . Energy Cannon . | . . . Ballistic Gun 2 | 1 1 . Ballistic Cannon . | . . . Launcher . | . . . Special Weapon . | . . . Impact Weapon . | . . . Slashing Weapon . | . . . Piercing Weapon . | . . . Special Melee Weapon . | . . . Unidentified Prototypes . | . . . Parts Lost 10 | . 7 3 Power 1 | . 1 . Propulsion 4 | . 3 1 Utility 2 | . 1 1 Weapon 3 | . 2 1 Highest Loss Streak 6 | . 6 3 To Critical Strikes . | . . . Average Backups 11 | 2 11 15 Power 2 | . 2 3 Propulsion 2 | 1 2 2 Utility 3 | . 3 4 Weapon 3 | . 3 6 Tool/Special . | . . . Unused Backups 11 | . . 11 Power 3 | . . 3 Propulsion 1 | . . 1 Utility 3 | . . 3 Weapon 4 | . . 4 Tool/Special . | . . . Average Slot Usage (%) 94 | . 93 96 Engine 13 | . 13 11 Treads 16 | . 12 31 Wheel 9 | . 12 . Device 13 | . 11 20 Storage 13 | . 14 11 Energy Gun 13 | . 14 11 Ballistic Gun 12 | . 13 10 Peak Build Rating 14 | 7 12 14 Average Rating 9 | 5 9 13 On Entrance 6 | . 7 12 Naked Turns . | . . . Heaviest Build 52 | 15 52 52 Greatest Support 60 | 20 20 60 Greatest Overweight (x) 16 | . 16 2 Average Overweight (x) 1 | . 2 . Largest Inventory Capacity 20 | 8 20 20 Average Capacity 17 | 7 18 20 Most Carried 17 | 4 17 17 Average Carried 11 | 2 11 15 Final Capacity 20 | 8 20 20 Final Carried 17 | 4 17 17 Class Distribution -------------------- 81% | Mutant 18% | Scavenger-Mutant Dominant Class ---------------- Mutant | -10/Materials Scavenger-Mutant | -9/Materials Resources | -11 -10 -9 ----------- Run | Yrd Mat Mat Matter Collected 647 | 205 320 122 Remotely . | . . . Salvage Created 896 | 116 473 307 Parts 71 | 10 29 32 Haulers Intercepted 2 | . 1 1 Recyclers Shooed 1 | 1 . . Parts Field Recycled . | . . . Retrieved Matter . | . . . Parts Self-Destructed . | . . . Prevented . | . . . Kills | -11 -10 -9 ------- Run | Yrd Mat Mat Combat Hostiles Destroyed 21 | . 9 12 Guns 21 | . 9 12 Classes Destroyed 7 | 2 4 1 Tunneler 2 | 2 . . Hauler 2 | . 1 1 Recycler 2 | 1 1 . Operator 1 | . 1 . Swarmer 12 | . 3 9 Grunt 8 | . 6 2 Sentry 1 | . . 1 Best Kill Streak 6 | 2 6 6 Combat Bots Only 6 | . 5 6 Max Kills in Single Turn 2 | 1 2 2 Gunslinging 1 | . 1 1 Exploded . | . . . Melee . | . . . Uniques/NPCs Destroyed . | . . . Combat | -11 -10 -9 -------- Run | Yrd Mat Mat Hostile Shots Fired 166 | . 86 80 Missed 43 | . 23 20 Hits 123 | . 63 60 Projectile 123 | . 63 60 Critical Strikes 1 | . . 1 Damage Taken 1440 | . 797 643 Core 185 | . 135 50 Absorbed by Shields . | . . . Core Remaining (%) 73 | 100 46 . Volleys Fired 85 | 9 38 38 Largest 2 | 2 2 2 Hottest 100 | 70 100 60 Shots Fired 164 | 18 72 74 Gun 164 | 18 72 74 Cannon . | . . . Launcher . | . . . Special . | . . . Kinetic 76 | 9 31 36 Thermal 88 | 9 41 38 Explosive . | . . . Electromagnetic . | . . . Robot Hit Streak 16 | 6 11 16 Robot Miss Streak 3 | 2 3 2 Penetration Max . | . . . Secondary Targets 6 | . 2 4 Max Gunslinging Chain 1 | . 1 1 Shots Hit Robots 119 | 12 51 56 Core Hits 45 | 4 23 18 Critical Kills . | . . . Critical Parts Destroyed . | . . . Critical Strikes 2 | . 2 . Burn 2 | . 2 . Melee Attacks . | . . . Impact . | . . . Slashing . | . . . Piercing . | . . . Sneak Attacks . | . . . Combat Hostiles . | . . . Follow-up Attacks . | . . . Damage Inflicted 1503 | 145 672 686 Guns 1486 | 145 655 686 Cannons . | . . . Explosions . | . . . Melee . | . . . Ramming 17 | . 17 . Kinetic 689 | 47 266 376 Thermal 797 | 98 389 310 Explosive . | . . . Electromagnetic . | . . . Impact . | . . . Slashing . | . . . Piercing . | . . . Highest Corruption . | . . . Average Corruption . | . . . Corruption Purged . | . . . Corruption Blocked . | . . . Overload Shots . | . . . Overflow Damage . | . . . Projectiles . | . . . Explosions . | . . . Melee . | . . . Knockbacks . | . . . Impact . | . . . Kinetic . | . . . Secondary . | . . . Self-Inflicted Damage 8 | . 8 . Shots . | . . . Rammed 1 | . 1 . Targets Rammed 1 | . 1 . Kicked . | . . . Crushed . | . . . Highest Temperature 203 | 27 203 . Average Temperature 57 | 14 71 . Received Heat Transfer 630 | . 396 234 Siege Activations . | . . . Martial Activations . | . . . Shielding Activations . | . . . Robots Disrupted . | . . . Combat Hostiles . | . . . Robots Corrupted . | . . . Combat Hostiles . | . . . Parts Fried . | . . . Impact Corruptions . | . . . Robots Melted . | . . . Combat Hostiles . | . . . Parts Melted 1 | . 1 . Heat Transferred 2221 | 296 1225 700 Parts Sabotaged . | . . . Parts Stolen . | . . . Parts Stripped . | . . . Power Chain Reactions . | . . . Alert | -11 -10 -9 ------- Run | Yrd Mat Mat Maximum Alert Level 1 | . . 1 Low Security (%) 97 | 100 100 87 Level 1 2 | . . 12 Level 2 . | . . . Level 3 . | . . . Level 4 . | . . . Level 5 . | . . . High Security . | . . . Max Security . | . . . Peak Influence 220 | 5 125 220 Initial . | . . . Average 33 | . 22 93 Influence Increases 569 | 15 267 287 Destroy 0b10 Robot/C 420 | . 180 240 Destroy 0b10 Robot/NC 35 | 15 15 5 Destroy Leader 84 | . 42 42 Lose Combat Pursuer 30 | . 30 . Influence Decreases 402 | 15 267 120 Time Decay 303 | 15 198 90 Lost Part 99 | . 69 30 Squads Dispatched 1 | . 1 . Investigation . | . . . Extermination . | . . . Reinforcement 1 | . 1 . Assault . | . . . Garrison . | . . . Intercept . | . . . Searches Triggered . | . . . Construction Impeded . | . . . Haulers Reinforced . | . . . Active Scanning Responses . | . . . Cargo Convoy Interrupts . | . . . Stealth | -11 -10 -9 --------- Run | Yrd Mat Mat Distress Signals 1 | . . 1 Communications Jammed . | . . . Distress Signals . | . . . Times Spotted 39 | . 22 17 Peak Tracking Total 6 | . 5 6 Tactical Retreats 2 | . 2 . Traps | -11 -10 -9 ------- Run | Yrd Mat Mat Traps Triggered . | . . . Indirectly . | . . . Trap Hack Attempts . | . . . Triggered . | . . . Disarmed . | . . . Reprogrammed . | . . . Reused . | . . . Traps Extracted . | . . . Installed . | . . . Triggered . | . . . Machines | -11 -10 -9 ---------- Run | Yrd Mat Mat Machines Disabled . | . . . Max in Single Turn . | . . . Machines Repaired . | . . . Machines Dismantled . | . . . Machines Sabotaged . | . . . Overloaded Fab Kills . | . . . Hacking | -11 -10 -9 --------- Run | Yrd Mat Mat Machines Accessed . | . . . Terminals . | . . . Fabricators . | . . . Repair Stations . | . . . Recycling Units . | . . . Scanalyzers . | . . . Garrison Access . | . . . Total Hacks . | . . . Successful . | . . . Failed . | . . . Catastrophic . | . . . Database Lockouts . | . . . Manual . | . . . Terminals . | . . . Fabricators . | . . . Repair Stations . | . . . Recycling Units . | . . . Scanalyzers . | . . . Garrison Access . | . . . Terminal Hacks . | . . . Fabricator Hacks . | . . . Repair Station Hacks . | . . . Recycling Unit Hacks . | . . . Scanalyzer . | . . . Garrison Access Hacks . | . . . Unauthorized Hacks . | . . . Terminals . | . . . Fabricators . | . . . Repair Stations . | . . . Recycling Units . | . . . Scanalyzers . | . . . Garrison Access . | . . . Data Cores Recovered . | . . . Used . | . . . Hacking Detections . | . . . Full Trace Events . | . . . Feedback Events . | . . . Feedback Blocked . | . . . Robot Schematics Acquired . | . . . Robots Built . | . . . Authchips . | . . . Time . | . . . Total Robot Build Rating . | . . . Part Schematics Acquired . | . . . Parts Built . | . . . Authchips . | . . . Time . | . . . Total Part Build Rating . | . . . Parts Repaired . | . . . Time . | . . . Parts Recycled . | . . . Recycled Matter . | . . . Retrieved Matter . | . . . Retrieved Components . | . . . Parts Scanalyzed . | . . . Part Schematics Acquired . | . . . Parts Damaged . | . . . Bothacking | -11 -10 -9 ------------ Run | Yrd Mat Mat Used RIF Installer . | . . . Robots Hacked . | . . . Non-combat . | . . . Combat . | . . . Robot Hacks Applied . | . . . Relay Couplers Released . | . . . Fabnet Peak Effective % . | . . . Robots Rewired . | . . . Allies Hacked . | . . . Hacks Repelled . | . . . Allies | -11 -10 -9 -------- Run | Yrd Mat Mat Total Allies . | . . . Largest Group . | . . . Highest-Rated Group . | . . . Highest-Rated Ally . | . . . Total Orders . | . . . Ally Attacks . | . . . Total Damage . | . . . Kills . | . . . Allies Corrupted . | . . . Allies Melted . | . . . Intel | -11 -10 -9 ------- Run | Yrd Mat Mat Active Infowar (turns) 213 | 16 197 . Seismic 213 | 16 197 . Robot Analysis Total . | . . . Derelict Logs Recovered . | . . . Drone Launches . | . . . Drone Recoveries . | . . . Exploration | -11 -10 -9 ------------- Run | Yrd Mat Mat Turns Passed 1502 | 166 1046 290 Spaces Moved 580 | 87 387 106 Core 19 | 9 10 . Treads 415 | 73 236 106 Legs . | . . . Wheels 146 | 5 141 . Hover . | . . . Flight . | . . . Fastest Speed 50 | 50 140 160 Average Speed 207 | 144 234 161 Slowest Speed 850 | 160 850 320 Overloaded Moves . | . . . Propulsion Burnouts . | . . . Robots Hopped . | . . . Potential Cave-ins . | . . . Cave-ins Triggered . | . . . Exploration Rate (%) 19 | 4 41 13 Regions Visited 2 Branch Regions . Pre-discovered Areas . | . . . Known Exits Taken . | . . . Unknown Exits Taken 2 | 1 1 . Scrap Searched . | . . . Spaces Dug . | . . . Terrain Destroyed . | . . . Melee . | . . . Projectile . | . . . AOE . | . . . Terrain Rammed . | . . . Walls Destroyed . | . . . Machines Disabled . | . . . Actions | -11 -10 -9 --------- Run | Yrd Mat Mat Total 708 | 106 453 149 Wait . | . . . Move 578 | 86 386 106 Hop . | . . . Pick Up 21 | 4 16 1 Fast Attach 7 | 7 . . Attach 9 | . 7 2 Detach . | . . . Swap 7 | . 5 2 Drop . | . . . Fire 85 | 9 38 38 Melee . | . . . Ram 1 | . 1 . Kick . | . . . Crush . | . . . Escape Stasis . | . . . Rewire . | . . . Trap . | . . . Miscellaneous . | . . . Route ------- -11/Scrapyard -10/Materials -9/Materials History --------- Turn | Location | Event 5 | -11/Scrapyard | Discovered new exit (range 13) 167 | -11/Scrapyard | Entered Materials 305 | -10/Materials | Build established: Mutant 612 | -10/Materials | Core integrity fell below 50% 633 | -10/Materials | Lost 6 parts (1p3n2w) 1009 | -10/Materials | Discovered new exit (range 5) 1213 | -10/Materials | Entered another Materials area 1213 | -9/Materials | Evolved 2 slots: Propulsion x1, Utility x1 1503 | -9/Materials | Self-destructed Last Messages --------------- 01442_ Y-45 Defender destroyed. 01443_ Acquired 3 matter. 01452_ W-16 Scout sends out distress signal. 01456_ C-30 ARC bursts open, deploying its payload. 01456_ G-47 Trooper unfolds itself. 01456_ G-34 Mercenary unfolds itself. 01463_ Heat Sink destroyed. 01465_ Acquired 17 matter. 01481_ K-01 Serf collects debris. 01484_ A-02 Transporter destroyed. 01484_ Switching to secondary target: G-47 Trooper. 01485_ K-01 Serf collects debris. 01487_ Lgt. Treads destroyed. 01489_ K-01 Serf collects debris. 01498_ Assault Rifle destroyed. 01499_ K-01 Serf collects debris. 01500_ R-06 Scavenger collects Weight Redist. System. Map ----- +----------------------------------------------------+ | ?????????????????????????????????????????????????? | | ?????????????????????????????????????????????????? | | ?????????????????????????????????????????????????? | | ?????????????????????????????????????????????????? | | ?????????????????????????????????????????????????? | | ?????????????????????????????????????????????????? | | ?????????????????????????????????????????????????? | | ????????????????? ???????????????????????????? | | ????????????????? " ???????????????????????????? | | ????????????????? "%"???????????????????????????? | | ????????????????? " ???????????????????????????? | | ????????????????? ???????????????????????????? | | ?????????????????# #???????????????????????????? | | ?????????????????? ????????????????????????????? | | ?????????????????? ????????????????????????????? | | ?????????????????? ????????????????????????????? | | ?????????????????? ????????????????????????????? | | ?????????????????? ????????????????????????????? | | ?????????????????? ??????????????? ????????????? | | ??????????????????# #?????? ?????? ""???????????? | | ??????????????????# #?????? ????? ""???????????? | | ??????????????????#!#?????#+##### """ ?????????? | | ????????????####### #????# ?????????? | | ????????????# #%###### kr?????????? | | ????????????# !#a* g t #????????????? | | ????????????# *#= rg @ u#???????????????????? | | ????????????# !! +%= =* k r #???????????????????? | | ????????????# !!=#= [%= #???????????????????? | | ????????????# [%# *** ; ??????????????????? | | ????????????+ *+% %% # = ????????????????? | | ????????????########## % % #? ???????????????? | | ?????????????????????# #?? [?????????????? | | ?????????????????????# #####??? ????????????? | | ?????????????????????# #???????? ???????????? | | ?????????????????????# #?????????###???????????? | | ?????????????????????# #######?????????????????? | | ?????????????????????# #?????????????????? | | ?????????????????????# ##### #?????????????????? | | ?????????????????????# #???# #?????????????????? | | ?????????????????????# #???# #?????????????????? | | ?????????????????????# #???# #?????????????????? | | ?????????????????????# #???# #?????????????????? | | ?????????????????????# #???# #?????????????????? | | ?????????????????????# #???# #?????????????????? | | ?????????????????????# #???# #?????????????????? | | ?????????????????????# #####+####??????????????? | | ?????????????????????# # #??????????????? | | ??????????????????#### # #??????????????? | | ?????????????????##! # #??????????????? | | ?????????????????#! # #??????????????? | +----------------------------------------------------+ Best States ------------- Heat Dissipation 52 Energy Generation 12 Energy Capacity 265 Matter Stores 300 Matter Capacity 300 Sight Range 16 Terrain Scan Density 10 Evasion (%) 44 Recoil Reduction 3 Item Schematics ----------------- None Robot Schematics ------------------ None Fabricated ------------ Nothing Repaired ---------- Nothing Alien Tech Used ----------------- None Achievements -------------- None Challenges ------------ None Game ------ Seed RecyclingGravityMultitool Manual? 0 Play Time 00:07:54 Cumulative 61.6 hours Start 2025.06.07 @ 01:28:36 End 2025.06.07 @ 01:36:01 Sessions 1 Manual Loads 0 Difficulty Rogue Special Mode None Game No. 78 Rogue 78 Adventurer 0 Explorer 0 Win Type - Total 1 Types 1/0/0/0/0/0/0/0/0/0 Lore% 29 Gallery% 41 Achievement% 37 Wizard Run 0 Options --------- Layout 1 ASCII 0 Keyboard 0 Movement Arrows Keybinds 0 Fullscreen 1 Font 24/Smallcaps Map View 50x35 Zoom Use 0% Tactical HUD 1 Map Filters NONE Filters NONE Steam X RUN: d3c3b1cc-c9d7-470f-85ce-069743bc1e5e